fUST/lending_fUST_20250713
["ID","MTS","AMOUNT","RATE_DAILY","PERIOD"]
[371558292,1752351032721,-460.0,0.00016438,2]
[371558293,1752351032731,-582.6499586,0.00016438,2]
[371558295,1752351032741,-460.0,0.00016438,2]
[371558297,1752351032751,-460.0,0.00016438,2]
[371558299,1752351032760,-460.0,0.00016438,2]
[371558301,1752351032769,-460.0,0.00016438,2]
[371558302,1752351032778,-460.0,0.00016438,2]
[371558304,1752351032788,-460.0,0.00016438,2]
[371558306,1752351032797,-506.36677536,0.00016438,2]
[371558308,1752351032806,-460.0,0.00016438,2]
[371558309,1752351032816,-460.0,0.00016438,2]
[371558311,1752351032826,-460.0,0.00016438,2]
[371558313,1752351032835,-460.0,0.00016438,2]
[371558315,1752351032845,-460.0,0.00016438,2]
[371558316,1752351032855,-460.0,0.00016438,2]
[371558318,1752351032865,-460.0,0.00016438,2]
[371558320,1752351032874,-460.0,0.00016438,2]
[371558322,1752351032884,-460.0,0.00016438,2]
[371558323,1752351032893,-460.0,0.00016438,2]
[371558325,1752351032902,-460.0,0.00016438,2]
[371558327,1752351032911,-460.0,0.00016438,2]
[371558329,1752351032921,-460.0,0.00016438,2]
[371558331,1752351032930,-460.0,0.00016438,2]
[371558332,1752351032939,-460.0,0.00016438,2]
[371558334,1752351032951,-460.0,0.00016438,2]
[371558336,1752351032962,-460.0,0.00016438,2]
[371558338,1752351032971,-460.0,0.00016438,2]
[371558339,1752351032980,-460.0,0.00016438,2]
[371558341,1752351032991,-460.0,0.00016438,2]
[371558343,1752351033001,-460.0,0.00016438,2]
[371558345,1752351033010,-460.0,0.00016438,2]
[371558347,1752351033021,-460.0,0.00016438,2]
[371558348,1752351033033,-460.0,0.00016438,2]
[371558350,1752351033043,-497.1651896,0.00016438,2]
[371558352,1752351033052,-460.0,0.00016438,2]
[371558354,1752351033062,-460.0,0.00016438,2]
[371558355,1752351033072,-460.0,0.00016438,2]
[371558357,1752351033082,-460.0,0.00016438,2]
[371558359,1752351033091,-178.43120942,0.00016438,2]
[371558361,1752351033101,-460.0,0.00016438,2]
[371558362,1752351033110,-460.0,0.00016438,2]
[371558364,1752351033121,-460.0,0.00016438,2]
[371558366,1752351033131,-460.0,0.00016438,2]
[371558368,1752351033141,-513.95499484,0.00016438,2]
[371558370,1752351033150,-460.0,0.00016438,2]
[371558371,1752351033159,-460.0,0.00016438,2]
[371558373,1752351033168,-500.0,0.00016438,2]
[371558375,1752351033177,-411.20596122,0.00016438,2]
[371558377,1752351033186,-460.0,0.00016438,2]
[371558378,1752351033196,-460.0,0.00016438,2]
[371558380,1752351033205,-460.0,0.00016438,2]
[371558382,1752351033214,-460.0,0.00016438,2]
[371558384,1752351033223,-460.0,0.00016438,2]
[371558386,1752351033232,-460.0,0.00016438,2]
[371558387,1752351033242,-460.0,0.00016438,2]
[371558389,1752351033251,-460.0,0.00016438,2]
[371558391,1752351033261,-460.0,0.00016438,2]
[371558393,1752351033270,-460.0,0.00016438,2]
[371558394,1752351033279,-460.0,0.00016438,2]
[371558396,1752351033289,-460.0,0.00016438,2]
[371558398,1752351033299,-460.0,0.00016438,2]
[371558400,1752351033308,-460.0,0.00016438,2]
[371558402,1752351033317,-460.0,0.00016438,2]
[371558403,1752351033327,-460.0,0.00016438,2]
[371558405,1752351033336,-460.0,0.00016438,2]
[371558407,1752351033345,-460.0,0.00016438,2]
[371558425,1752351033556,-460.0,0.00016438,2]
[371558426,1752351033567,-460.0,0.00016438,2]
[371558427,1752351033577,-373.94717285,0.00016438,2]
[371558428,1752351033587,-460.0,0.00016438,2]
[371558429,1752351033597,-460.0,0.00016438,2]
[371558430,1752351033606,-460.0,0.00016438,2]
[371558431,1752351033615,-460.0,0.00016438,2]
[371558432,1752351033625,-594.99,0.00016438,2]
[371558433,1752351033634,-460.0,0.00016438,2]
[371558434,1752351033644,-460.0,0.00016438,2]
[371558435,1752351033653,-460.0,0.00016438,2]
[371558436,1752351033663,-460.0,0.00016438,2]
[371558437,1752351033672,-460.0,0.00016438,2]
[371558438,1752351033682,-460.0,0.00016438,2]
[371558439,1752351033691,-460.0,0.00016438,2]
[371558440,1752351033701,-460.0,0.00016438,2]
[371558441,1752351033711,-460.0,0.00016438,2]
[371558442,1752351033721,-500.0,0.00016438,2]
[371558443,1752351033731,-460.0,0.00016438,2]
[371558444,1752351033741,-460.0,0.00016438,2]
[371558445,1752351033751,-460.0,0.00016438,2]
[371558446,1752351033760,-460.0,0.00016438,2]
[371558447,1752351033770,-460.0,0.00016438,2]
[371558448,1752351033779,-460.0,0.00016438,2]
[371558449,1752351033788,-460.0,0.00016438,2]
[371558450,1752351033798,-377.3561353,0.00016438,2]
[371558451,1752351033814,-82.6438647,0.00016438,2]
[371558452,1752351033824,-460.0,0.00016438,2]
[371558453,1752351033833,-460.0,0.00016438,2]
[371558454,1752351033842,-460.0,0.00016438,2]
[371558455,1752351033851,-460.0,0.00016438,2]
[371558456,1752351033861,-460.0,0.00016438,2]
[371558457,1752351033871,-460.0,0.00016438,2]
[371558458,1752351033880,-460.0,0.00016438,2]
[371558459,1752351033890,-161.80294239,0.00016438,2]
[371558460,1752351033903,-299.09705761,0.00016438,2]
[371558461,1752351033912,-460.0,0.00016438,2]
[371558462,1752351033922,-460.0,0.00016438,2]
[371558463,1752351033931,-460.0,0.00016438,2]
[371558464,1752351033942,-460.0,0.00016438,2]
[371558465,1752351033956,-460.0,0.00016438,2]
[371558466,1752351033966,-460.0,0.00016438,2]
[371558467,1752351033977,-460.0,0.00016438,2]
[371558468,1752351033987,-460.0,0.00016438,2]
[371558469,1752351034001,-460.0,0.00016438,2]
[371558470,1752351034012,-460.0,0.00016438,2]
[371558471,1752351034023,-460.0,0.00016438,2]
[371558472,1752351034040,-264.90839392,0.00016438,2]
[371558473,1752351034059,-550.32,0.00016438,2]
[371558474,1752351034070,-43.06829235,0.00016438,2]
[371558492,1752351038391,-416.93170765,0.00016438,2]
[371558493,1752351038400,-460.0,0.00016438,2]
[371558494,1752351038410,-380.0,0.00016438,2]
[371558495,1752351038420,-551.74,0.00016438,2]
[371558496,1752351038430,-460.0,0.00016438,2]
[371558497,1752351038439,-460.0,0.00016438,2]
[371558498,1752351038449,-460.0,0.00016438,2]
[371558499,1752351038459,-460.0,0.00016438,2]
[371558500,1752351038469,-460.0,0.00016438,2]
[371558501,1752351038478,-460.0,0.00016438,2]
[371558502,1752351038487,-460.0,0.00016438,2]
[371558503,1752351038498,-460.0,0.00016438,2]
[371558504,1752351038507,-460.0,0.00016438,2]
[371558505,1752351038517,-460.0,0.00016438,2]
[371558506,1752351038527,-460.0,0.00016438,2]
[371558507,1752351038537,-460.0,0.00016438,2]
[371558508,1752351038546,-460.0,0.00016438,2]
[371558509,1752351038556,-460.0,0.00016438,2]
[371558510,1752351038566,-460.0,0.00016438,2]
[371558511,1752351038576,-460.0,0.00016438,2]
[371558512,1752351038585,-460.0,0.00016438,2]
[371558513,1752351038595,-460.0,0.00016438,2]
[371558514,1752351038605,-460.0,0.00016438,2]
[371558515,1752351038614,-460.0,0.00016438,2]
[371558516,1752351038624,-460.0,0.00016438,2]
[371558517,1752351038634,-460.0,0.00016438,2]
[371558518,1752351038644,-462.46168213,0.00016438,2]
[371558519,1752351038654,-460.0,0.00016438,2]
[371558520,1752351038663,-576.74,0.00016438,2]
[371558521,1752351038672,-1048.15,0.00016438,2]
[371558522,1752351038682,-460.0,0.00016438,2]
[371558523,1752351038691,-460.0,0.00016438,2]
[371558524,1752351038701,-460.0,0.00016438,2]
[371558525,1752351038711,-655.31,0.00016438,2]
[371558526,1752351038720,-460.0,0.00016438,2]
[371558527,1752351038730,-460.0,0.00016438,2]
[371558528,1752351038740,-460.0,0.00016438,2]
[371558529,1752351038750,-460.0,0.00016438,2]
[371558530,1752351038759,-460.0,0.00016438,2]
[371558531,1752351038769,-460.0,0.00016438,2]
[371558532,1752351038778,-460.0,0.00016438,2]
[371558533,1752351038788,-608.92,0.00016438,2]
[371558534,1752351038797,-460.0,0.00016438,2]
[371558535,1752351038807,-460.0,0.00016438,2]
[371558536,1752351038817,-460.0,0.00016438,2]
[371558537,1752351038827,-460.0,0.00016438,2]
[371558538,1752351038837,-460.0,0.00016438,2]
[371558539,1752351038846,-460.0,0.00016438,2]
[371558540,1752351038855,-523.46,0.00016438,2]
[371558541,1752351038865,-460.0,0.00016438,2]
[371558542,1752351038874,-460.0,0.00016438,2]
[371558543,1752351038883,-800.11,0.00016438,2]
[371558544,1752351038893,-460.0,0.00016438,2]
[371558545,1752351038903,-498.39,0.00016438,2]
[371558546,1752351038913,-460.0,0.00016438,2]
[371558547,1752351038922,-460.0,0.00016438,2]
[371558548,1752351038931,-460.0,0.00016438,2]
[371558549,1752351038941,-460.0,0.00016438,2]
[371558550,1752351038952,-460.0,0.00016438,2]
[371558551,1752351038962,-460.0,0.00016438,2]
[371558552,1752351038972,-460.0,0.00016438,2]
[371558553,1752351038981,-460.0,0.00016438,2]
[371558554,1752351038991,-460.0,0.00016438,2]
[371558555,1752351039002,-460.0,0.00016438,2]
[371558556,1752351039012,-563.29,0.00016438,2]
[371558557,1752351039021,-460.0,0.00016438,2]
[371558558,1752351039032,-472.08,0.00016438,2]
[371558559,1752351039042,-460.0,0.00016438,2]
[371558560,1752351039052,-460.0,0.00016438,2]
[371558561,1752351039063,-605.56,0.00016438,2]
[371558562,1752351039073,-460.0,0.00016438,2]
[371558563,1752351039083,-460.0,0.00016438,2]
[371558564,1752351039092,-701.77,0.00016438,2]
[371558565,1752351039101,-460.0,0.00016438,2]
[371558566,1752351039110,-460.0,0.00016438,2]
[371558567,1752351039120,-460.0,0.00016438,2]
[371558568,1752351039130,-475.21,0.00016438,2]
[371558569,1752351039140,-460.0,0.00016438,2]
[371558570,1752351039149,-460.0,0.00016438,2]
[371558571,1752351039159,-460.0,0.00016438,2]
[371558572,1752351039168,-460.0,0.00016438,2]
[371558573,1752351039178,-460.0,0.00016438,2]
[371558574,1752351039188,-460.0,0.00016438,2]
[371558575,1752351039197,-460.0,0.00016438,2]
[371558576,1752351039207,-460.0,0.00016438,2]
[371558577,1752351039216,-460.0,0.00016438,2]
[371558578,1752351039226,-959.48,0.00016438,2]
[371558579,1752351039235,-586.62152497,0.00016438,2]
[371558580,1752351039245,-460.0,0.00016438,2]
[371558581,1752351039254,-460.0,0.00016438,2]
[371558582,1752351039265,-460.0,0.00016438,2]
[371558583,1752351039275,-460.0,0.00016438,2]
[371558584,1752351039285,-460.0,0.00016438,2]
[371558585,1752351039294,-460.0,0.00016438,2]
[371558586,1752351039306,-460.0,0.00016438,2]
[371558587,1752351039316,-460.0,0.00016438,2]
[371558588,1752351039326,-460.0,0.00016438,2]
[371558589,1752351039335,-460.0,0.00016438,2]
[371558590,1752351039346,-460.0,0.00016438,2]
[371558591,1752351039357,-460.0,0.00016438,2]
[371558592,1752351039367,-460.0,0.00016438,2]
[371558593,1752351039377,-460.0,0.00016438,2]
[371558594,1752351039386,-460.0,0.00016438,2]
[371558595,1752351039395,-460.0,0.00016438,2]
[371558596,1752351039405,-460.0,0.00016438,2]
[371558597,1752351039414,-460.0,0.00016438,2]
[371558598,1752351039423,-460.0,0.00016438,2]
[371558599,1752351039433,-460.0,0.00016438,2]
[371558600,1752351039442,-460.0,0.00016438,2]
[371558601,1752351039451,-460.0,0.00016438,2]
[371558602,1752351039461,-460.0,0.00016438,2]
[371558603,1752351039470,-460.0,0.00016438,2]
[371558604,1752351039479,-460.0,0.00016438,2]
[371558605,1752351039489,-460.0,0.00016438,2]
[371558606,1752351039498,-460.0,0.00016438,2]
[371558607,1752351039507,-460.0,0.00016438,2]
[371558608,1752351039516,-460.0,0.00016438,2]
[371558609,1752351039527,-460.0,0.00016438,2]
[371558610,1752351039536,-460.0,0.00016438,2]
[371558611,1752351039545,-460.0,0.00016438,2]
[371558612,1752351039554,-460.0,0.00016438,2]
[371558613,1752351039563,-460.0,0.00016438,2]
[371558614,1752351039573,-460.0,0.00016438,2]
[371558615,1752351039582,-460.0,0.00016438,2]
[371558616,1752351039592,-460.0,0.00016438,2]
[371558617,1752351039600,-181.35,0.00016438,2]
[371558618,1752351039610,-500.0,0.00016438,2]
[371558619,1752351039619,-429.68877859,0.00016473,2]
[371558620,1752351039628,-500.0,0.00016473,2]
[371558621,1752351039637,-460.0,0.00016711,2]
[371558622,1752351039646,-460.0,0.00016711,2]
[371558623,1752351039656,-409.92972845,0.00016711,2]
[371558624,1752351039665,-460.0,0.00016711,2]
[371558625,1752351039674,-460.0,0.00016711,2]
[371558626,1752351039683,-460.0,0.00016711,2]
[371558627,1752351039692,-841.33,0.00016711,2]
[371558628,1752351039702,-460.0,0.00016711,2]
[371558629,1752351039711,-460.0,0.00016711,2]
[371558630,1752351039720,-500.51,0.00016711,2]
[371558631,1752351039730,-1512.91,0.00016711,2]
[371558632,1752351039739,-514.95,0.00016711,2]
[371558634,1752351039748,-460.0,0.00016711,2]
[371558635,1752351039758,-460.0,0.00016712,2]
[371558637,1752351039767,-460.0,0.00016712,2]
[371558638,1752351039776,-326.62802765,0.00016712,2]
[371558639,1752351039785,-460.0,0.00016712,2]
[371558640,1752351039795,-460.0,0.00016712,2]
[371558641,1752351039804,-460.0,0.00016712,2]
[371558642,1752351039813,-460.0,0.00016712,2]
[371558643,1752351039824,-460.0,0.00016712,2]
[371558644,1752351039833,-460.0,0.00016712,2]
[371558645,1752351039842,-560.0,0.00016712,2]
[371558646,1752351039852,-460.0,0.00016712,2]
[371558647,1752351039861,-460.0,0.00016712,2]
[371558648,1752351039871,-238.1678258,0.00016712,2]
[371558649,1752351039880,-272.35,0.00016712,2]
[371558650,1752351039889,-460.0,0.00016712,2]
[371558651,1752351039898,-460.0,0.00016712,2]
[371558652,1752351039908,-460.0,0.00016712,2]
[371558653,1752351039917,-460.0,0.00016712,2]
[371558654,1752351039927,-460.0,0.00016712,2]
[371558655,1752351039936,-460.0,0.00016712,2]
[371558656,1752351039946,-460.0,0.00016712,2]
[371558658,1752351039961,-378.78826254,0.00016712,2]
[371558659,1752351039970,-460.0,0.00016712,2]
[371558660,1752351039979,-460.0,0.00016712,2]
[371558661,1752351039989,-460.0,0.00016712,2]
[371558662,1752351040140,-460.0,0.00016712,2]
[371558663,1752351040151,-460.0,0.00016712,2]
[371558664,1752351040160,-460.0,0.00016712,2]
[371558665,1752351040170,-460.0,0.00016712,2]
[371558666,1752351040180,-460.0,0.00016712,2]
[371558667,1752351040189,-460.0,0.00016712,2]
[371558668,1752351040198,-460.0,0.00016712,2]
[371558669,1752351040209,-460.0,0.00016712,2]
[371558670,1752351040218,-460.0,0.00016712,2]
[371558671,1752351040227,-460.0,0.00016712,2]
[371558673,1752351040236,-460.0,0.00016712,2]
[371558675,1752351040246,-359.4,0.00016712,2]
[371558676,1752351040256,-295.25,0.00016712,2]
[371558677,1752351040266,-460.0,0.00016712,2]
[371558678,1752351040276,-460.0,0.00016712,2]
[371558680,1752351040286,-460.0,0.00016712,2]
[371558682,1752351040295,-460.0,0.00016712,2]
[371558684,1752351040305,-460.0,0.00016712,2]
[371558686,1752351040314,-460.0,0.00016712,2]
[371558688,1752351040325,-460.0,0.00016712,2]
[371558690,1752351040334,-460.0,0.00016712,2]
[371558691,1752351040344,-460.0,0.00016712,2]
[371558692,1752351040353,-460.0,0.00016712,2]
[371558693,1752351040362,-180.93,0.00016712,2]
[371558694,1752351040371,-460.0,0.00016712,2]
[371558695,1752351040382,-531.88,0.00016712,2]
[371558696,1752351040391,-460.0,0.00016712,2]
[371558697,1752351040401,-460.0,0.00016712,2]
[371558698,1752351040412,-460.0,0.00016712,2]
[371558699,1752351040422,-1048.15,0.00016712,2]
[371558700,1752351040433,-655.31,0.00016712,2]
[371558701,1752351040442,-460.0,0.00016712,2]
[371558702,1752351040452,-460.0,0.00016712,2]
[371558703,1752351040463,-323.42,0.00016712,2]
[371558704,1752351040473,-460.0,0.00016712,2]
[371558705,1752351040482,-523.46,0.00016712,2]
[371558706,1752351040492,-191.48,0.00016712,2]
[371558707,1752351040501,-800.11,0.00016712,2]
[371558708,1752351040511,-460.0,0.00016712,2]
[371558709,1752351040521,-460.0,0.00016712,2]
[371558710,1752351040531,-460.0,0.00016712,2]
[371558711,1752351040541,-460.0,0.00016712,2]
[371558712,1752351040551,-701.77,0.00016712,2]
[371558713,1752351040560,-475.21,0.00016712,2]
[371558714,1752351040570,-460.0,0.00016712,2]
[371558715,1752351040580,-486.84,0.00016712,2]
[371558717,1752351040590,-460.0,0.00016712,2]
[371558718,1752351040600,-402.47879656,0.00016712,2]
[371558719,1752351040610,-959.48,0.00016712,2]
[371558721,1752351040619,-460.0,0.00016712,2]
[371558723,1752351040628,-451.13,0.00016712,2]
[371558725,1752351040638,-460.0,0.00016712,2]
[371558727,1752351040648,-460.0,0.00016712,2]
[371558729,1752351040657,-460.0,0.00016712,2]
[371558731,1752351040666,-491.93,0.00016712,2]
[371558734,1752351040676,-460.0,0.00016712,2]
[371558737,1752351040685,-207.73,0.00016712,2]
[371558740,1752351040695,-191.55,0.00016712,2]
[371558743,1752351040705,-460.0,0.00016712,2]
[371558746,1752351040715,-460.0,0.00016712,2]
[371558749,1752351040724,-460.0,0.00016712,2]
[371558752,1752351040734,-500.0,0.00016712,2]
[371558754,1752351040743,-460.0,0.00016985,2]
[371558756,1752351040754,-460.0,0.00016985,2]
[371558758,1752351040763,-460.0,0.00016985,2]
[371558760,1752351040773,-460.0,0.00016985,2]
[371558762,1752351040784,-460.0,0.00016985,2]
[371558764,1752351040793,-460.0,0.00016985,2]
[371558766,1752351040803,-460.0,0.00016985,2]
[371558768,1752351040812,-460.0,0.00016985,2]
[371558770,1752351040823,-460.0,0.00016985,2]
[371558772,1752351040832,-460.0,0.00016985,2]
[371558774,1752351040842,-460.0,0.00016985,2]
[371558776,1752351040852,-460.0,0.00016985,2]
[371558778,1752351040862,-460.0,0.00016985,2]
[371558780,1752351040872,-506.32,0.00016985,2]
[371558782,1752351040882,-841.33,0.00016985,2]
[371558784,1752351040892,-445.69,0.00016985,2]
[371558786,1752351040902,-500.51,0.00016985,2]
[371558788,1752351040912,-1512.91,0.00016985,2]
[371558790,1752351040922,-514.95,0.00016985,2]
[371558792,1752351040933,-460.0,0.00016986,2]
[371558794,1752351040942,-460.0,0.00016986,2]
[371558796,1752351040955,-460.0,0.00016986,2]
[371558798,1752351040965,-460.0,0.00016986,2]
[371558800,1752351040975,-463.47,0.00016986,2]
[371558802,1752351040985,-180.41,0.00016986,2]
[371558804,1752351040995,-571.5,0.00016986,2]
[371558806,1752351041007,-460.0,0.00016986,2]
[371558808,1752351041017,-460.0,0.00016986,2]
[371558810,1752351041028,-460.0,0.00016986,2]
[371558812,1752351041039,-250.34,0.00016986,2]
[371558814,1752351041048,-460.0,0.00016986,2]
[371558816,1752351041059,-460.0,0.00016986,2]
[371558818,1752351041071,-185.04194978,0.00016986,2]
[371558820,1752351041080,-460.0,0.00016986,2]
[371558822,1752351041090,-460.0,0.00016986,2]
[371558824,1752351041100,-460.0,0.00016986,2]
[371558826,1752351041109,-521.12,0.00016986,2]
[371558828,1752351041119,-208.75,0.00016986,2]
[371558830,1752351041128,-449.48,0.00016986,2]
[371558832,1752351041138,-460.0,0.00016986,2]
[371558834,1752351041148,-1048.15,0.00016986,2]
[371558836,1752351041157,-655.31,0.00016986,2]
[371558838,1752351041167,-460.0,0.00016986,2]
[371558840,1752351041176,-460.0,0.00016986,2]
[371558842,1752351041186,-523.46,0.00016986,2]
[371558844,1752351041195,-800.11,0.00016986,2]
[371558846,1752351041205,-321.86,0.00016986,2]
[371558848,1752351041214,-460.0,0.00016986,2]
[371558850,1752351041224,-701.77,0.00016986,2]
[371558852,1752351041233,-475.21,0.00016986,2]
[371558854,1752351041243,-959.48,0.00016986,2]
[371558856,1752351041252,-188.08,0.00016986,2]
[371558858,1752351041261,-460.0,0.00016986,2]
[371558860,1752351041271,-460.0,0.00016986,2]
[371558862,1752351041283,-460.0,0.00016986,2]
[371558864,1752351041302,-460.0,0.00016986,2]
[371558866,1752351041314,-460.0,0.00016986,2]
[371558868,1752351041324,-1000.0,0.00017021,2]
[371558869,1752351041333,-500.68323197,0.00017165,2]
[371558872,1752351041343,-493.45555494,0.00017165,2]
[371558874,1752351041353,-500.0,0.00017165,2]
[371558875,1752351041362,-460.0,0.00017259,2]
[371558876,1752351041372,-460.0,0.00017259,2]
[371558877,1752351041381,-460.0,0.00017259,2]
[371558878,1752351041391,-460.0,0.00017259,2]
[371558879,1752351041401,-604.45789562,0.00017259,2]
[371558880,1752351041410,-460.0,0.00017259,2]
[371558881,1752351041419,-460.0,0.00017259,2]
[371558882,1752351041429,-460.0,0.00017259,2]
[371558883,1752351041438,-460.0,0.00017259,2]
[371558884,1752351041448,-460.0,0.00017259,2]
[371558885,1752351041457,-841.33,0.00017259,2]
[371558886,1752351041467,-500.51,0.00017259,2]
[371558887,1752351041476,-1512.91,0.00017259,2]
[371558888,1752351041485,-514.95,0.00017259,2]
[371558889,1752351041495,-460.0,0.0001726,2]
[371558890,1752351041504,-460.0,0.0001726,2]
[371558891,1752351041514,-460.0,0.0001726,2]
[371558892,1752351041523,-460.0,0.0001726,2]
[371558893,1752351041533,-460.0,0.0001726,2]
[371558894,1752351041543,-460.0,0.0001726,2]
[371558895,1752351041552,-460.0,0.0001726,2]
[371558896,1752351041561,-460.0,0.0001726,2]
[371558897,1752351041571,-460.0,0.0001726,2]
[371558898,1752351041580,-1048.15,0.0001726,2]
[371558899,1752351041591,-655.31,0.0001726,2]
[371558900,1752351041612,-460.0,0.0001726,2]
[371558901,1752351041622,-460.0,0.0001726,2]
[371558902,1752351041631,-523.46,0.0001726,2]
[371558903,1752351041640,-800.11,0.0001726,2]
[371558904,1752351041649,-460.0,0.0001726,2]
[371558905,1752351041659,-701.77,0.0001726,2]
[371558906,1752351041668,-475.21,0.0001726,2]
[371558907,1752351041677,-959.48,0.0001726,2]
[371558908,1752351041687,-460.0,0.0001726,2]
[371558909,1752351041696,-460.0,0.0001726,2]
[371558910,1752351041706,-460.0,0.0001726,2]
[371558911,1752351041716,-225.11294479,0.00017462,2]
[371558912,1752351041725,-460.0,0.00017533,2]
[371558913,1752351041734,-460.0,0.00017533,2]
[371558914,1752351041743,-460.0,0.00017533,2]
[371558915,1752351041753,-460.0,0.00017533,2]
[371558916,1752351041762,-460.0,0.00017533,2]
[371558917,1752351041771,-460.0,0.00017533,2]
[371558918,1752351041781,-841.33,0.00017533,2]
[371558919,1752351041790,-500.51,0.00017533,2]
[371558920,1752351041800,-1512.91,0.00017533,2]
[371558921,1752351041809,-514.95,0.00017533,2]
[371558922,1752351041819,-460.0,0.00017534,2]
[371558923,1752351041829,-258.06,0.00017534,2]
[371558924,1752351041838,-244.86,0.00017534,2]
[371558925,1752351041847,-460.0,0.00017534,2]
[371558926,1752351041858,-460.0,0.00017534,2]
[371558927,1752351041867,-460.0,0.00017534,2]
[371558928,1752351041877,-1048.15,0.00017534,2]
[371558929,1752351041886,-655.31,0.00017534,2]
[371558930,1752351041895,-460.0,0.00017534,2]
[371558931,1752351041905,-502.83,0.00017534,2]
[371558932,1752351041914,-523.46,0.00017534,2]
[371558933,1752351041923,-800.11,0.00017534,2]
[371558934,1752351041933,-257.8551897,0.00017534,2]
[371558935,1752351041943,-701.77,0.00017534,2]
[371558936,1752351041954,-475.21,0.00017534,2]
[371558937,1752351041965,-959.48,0.00017534,2]
[371558938,1752351041975,-184.61142682,0.00017534,2]
[371558939,1752351041984,-460.0,0.00017534,2]
[371558940,1752351041993,-460.0,0.00017534,2]
[371558941,1752351042006,-1500.0,0.00017568,2]
[371558942,1752351042016,-262.3693145,0.00017713,2]
[371558943,1752351042026,-460.0,0.00017807,2]
[371558944,1752351042036,-333.55863944,0.00017807,2]
[371558945,1752351042045,-460.0,0.00017807,2]
[371558946,1752351042055,-460.0,0.00017807,2]
[371558947,1752351042064,-460.0,0.00017807,2]
[371558948,1752351042074,-841.33,0.00017807,2]
[371558949,1752351042084,-500.51,0.00017807,2]
[371558950,1752351042093,-1512.91,0.00017807,2]
[371558951,1752351042102,-514.95,0.00017807,2]
[371558952,1752351042112,-260.15,0.00017808,2]
[371558953,1752351042121,-260.0,0.00017808,2]
[371558954,1752351042131,-434.24,0.00017808,2]
[371558955,1752351042141,-460.0,0.00017808,2]
[371558956,1752351042151,-1048.15,0.00017808,2]
[371558957,1752351042160,-655.31,0.00017808,2]
[371558958,1752351042170,-332.28207366,0.00017808,2]
[371558959,1752351042179,-523.46,0.00017808,2]
[371558960,1752351042188,-800.11,0.00017808,2]
[371558961,1752351042197,-701.77,0.00017808,2]
[371558962,1752351042207,-475.21,0.00017808,2]
[371558963,1752351042216,-959.48,0.00017808,2]
[371558964,1752351042226,-460.0,0.00017808,2]
[371558965,1752351042235,-460.0,0.00017808,2]
[371558966,1752351042244,-1050.4056477,0.000179,2]
[371558967,1752351042254,-697.19260913,0.00017981,2]
[371558968,1752351042264,-160.0,0.00018025,2]